bitfinex-derivatives/quotes_BTCF0:USTF0_20241128
["timestamp","ask_amount","ask_price","bid_price","bid_amount"]
[1732783301530,0.02096294,95444.0,95443.0,0.052363]
[1732783301725,0.07189635,95444.0,95443.0,0.052363]
[1732783301924,0.18823288,95444.0,95443.0,0.052363]
[1732783302134,0.05093341,95444.0,95443.0,0.052363]
[1732783302343,0.23916629,95445.0,95443.0,0.052363]
[1732783302530,0.18823288,95446.0,95445.0,0.052362]
[1732783302725,0.18823288,95446.0,95442.0,0.3608]
[1732783302726,0.05093235,95446.0,95442.0,0.3608]
[1732783303034,0.1882521,95444.0,95443.0,0.052363]
[1732783304429,0.05093235,95444.0,95443.0,0.053363]
[1732783304728,0.05093235,95447.0,95443.0,0.001]
[1732783304924,0.05093235,95446.0,95445.0,0.052362]
[1732783305128,0.05093235,95447.0,95445.0,0.052362]
[1732783306930,0.05093235,95446.0,95444.0,0.052363]
[1732783307132,0.052359,95450.0,95448.0,0.05236]
[1732783307423,0.05093273,95449.0,95448.0,0.05236]
[1732783308037,0.21805473,95449.0,95448.0,0.05236]
[1732783308231,0.02095858,95449.0,95448.0,0.05236]
[1732783308434,0.07189131,95449.0,95448.0,0.05236]
[1732783308930,0.07189131,95449.0,95442.0,0.3608]
[1732783309139,0.052363,95444.0,95442.0,0.3608]
[1732783309338,0.05093273,95443.0,95442.0,0.3608]
[1732783309634,0.05093545,95443.0,95442.0,0.3608]
[1732783310027,0.06861014,95443.0,95442.0,0.54839247]
[1732783310631,0.12097314,95443.0,95442.0,0.54839247]
[1732783310840,0.12097314,95443.0,95442.0,0.54939247]
[1732783311528,0.12097314,95443.0,95442.0,0.55039247]
[1732783311730,0.25858578,95443.0,95442.0,0.3628]
[1732783311938,0.30952002,95443.0,95442.0,0.3628]
[1732783313229,0.12097314,95443.0,95442.0,0.3628]
[1732783313442,0.30952002,95443.0,95442.0,0.3628]
[1732783315339,0.30952002,95443.0,95442.0,0.002]
[1732783315745,0.12097314,95443.0,95442.0,0.002]
[1732783321764,0.05093545,95443.0,95442.0,0.3628]
[1732783322059,0.22153476,95454.0,95450.0,0.052359]
[1732783322060,0.08301297,95452.0,95450.0,0.052359]
[1732783322257,0.05093278,95451.0,95450.0,0.052359]
[1732783322558,0.05093278,95453.0,95450.0,0.052359]
[1732783322756,0.01911061,95454.0,95450.0,0.052359]
[1732783322757,0.05093278,95452.0,95450.0,0.052359]
[1732783322956,0.05093278,95451.0,95450.0,0.052359]
[1732783324251,0.05193278,95451.0,95450.0,0.052359]
[1732783324654,0.05236,95449.0,95445.0,0.052362]
[1732783324863,0.05093278,95448.0,95446.0,0.052361]
[1732783327357,0.05193278,95448.0,95446.0,0.052361]
[1732783327560,0.05093278,95447.0,95446.0,0.052361]
[1732783329663,0.052363,95443.0,95442.0,0.3608]
[1732783329866,0.10329578,95443.0,95442.0,0.3608]
[1732783330168,0.10329578,95443.0,95432.0,0.3608]
[1732783330169,0.052367,95436.0,95434.0,0.052368]
[1732783330462,0.05093278,95435.0,95434.0,0.052368]
[1732783331556,0.05093278,95438.0,95434.0,0.052368]
[1732783331756,0.0333,95439.0,95432.0,0.3608]
[1732783331757,0.19027117,95439.0,95432.0,0.3608]
[1732783331964,0.15697117,95436.0,95432.0,0.3608]
[1732783332165,0.05104,95439.0,95432.0,0.3608]
[1732783332166,0.052369,95433.0,95432.0,0.3608]
[1732783332665,0.15697117,95434.0,95427.0,0.18759247]
[1732783332862,0.052371,95428.0,95426.0,0.18759247]
[1732783333056,0.15697337,95433.0,95425.0,0.18759247]
[1732783333368,0.052372,95427.0,95425.0,0.18759247]
[1732783333558,0.052372,95427.0,95424.0,0.18759247]
[1732783333756,0.12556192,95425.0,95424.0,0.18759247]
[1732783334264,0.12556192,95426.0,95425.0,0.005]
[1732783334566,0.12556192,95426.0,95425.0,0.014]
[1732783335257,0.15797337,95433.0,95425.0,0.014]
[1732783335258,0.12556192,95428.0,95426.0,0.052373]
[1732783335466,0.12556192,95428.0,95426.0,0.23996547]
[1732783335662,0.12556192,95429.0,95428.0,0.052371]
[1732783335861,0.12556192,95429.0,95428.0,0.413171]
[1732783337163,0.12556192,95429.0,95428.0,0.417171]
[1732783337556,0.12556192,95429.0,95428.0,0.419171]
[1732783337866,0.12556192,95429.0,95428.0,0.418171]
[1732783339774,0.18836541,95429.0,95428.0,0.418171]
[1732783339964,0.23930413,95429.0,95428.0,0.418171]
[1732783340165,0.05093872,95429.0,95428.0,0.418171]
[1732783343772,0.05237,95430.0,95428.0,0.418171]
[1732783344167,0.05237,95430.0,95429.0,0.052371]
[1732783346675,0.05237,95430.0,95429.0,0.413171]
[1732783346973,0.17788455,95430.0,95429.0,0.415171]
[1732783347367,0.17788455,95430.0,95429.0,0.417171]
[1732783348287,0.05237,95430.0,95429.0,0.417171]
[1732783350185,0.12551455,95431.0,95430.0,0.05237]
[1732783350680,0.12551455,95432.0,95430.0,0.05237]
[1732783350886,0.12551455,95432.0,95429.0,0.3648]
[1732783350887,0.05237,95432.0,95431.0,0.05237]
[1732783352795,0.05237,95432.0,95431.0,0.41317]
[1732783353383,0.05237,95432.0,95431.0,0.05237]
[1732783354189,0.05337,95432.0,95431.0,0.05237]
[1732783354783,0.05837,95432.0,95431.0,0.05237]
[1732783354987,0.052371,95429.0,95428.0,0.54935247]
[1732783355185,0.052371,95429.0,95428.0,0.413171]
[1732783355784,0.052371,95429.0,95428.0,0.60076347]
[1732783356078,0.052371,95429.0,95428.0,0.413171]
[1732783356279,0.15689319,95431.0,95424.0,0.18759247]
[1732783356590,0.15689319,95431.0,95420.0,0.3608]
[1732783356591,0.15689319,95425.0,95420.0,0.3608]
[1732783356780,0.15698607,95423.0,95420.0,0.3608]
[1732783356980,0.0631,95424.0,95420.0,0.3608]
[1732783356981,0.15698607,95421.0,95420.0,0.3608]
[1732783357182,0.19008607,95422.0,95420.0,0.3608]
[1732783357587,0.052375,95421.0,95420.0,0.3608]
[1732783358689,0.19008607,95422.0,95415.0,0.18759247]
[1732783358994,0.052378,95416.0,95415.0,0.18759247]
[1732783359190,0.15698607,95420.0,95412.0,0.18916458]
[1732783359394,0.05238,95413.0,95412.0,0.18916458]
[1732783359698,0.05238,95413.0,95412.0,0.18922055]
[1732783359990,0.05238,95413.0,95412.0,0.00162808]
[1732783360197,0.05238,95413.0,95412.0,0.18952183]
[1732783360585,0.05238,95413.0,95412.0,0.00162808]
[1732783361494,0.05338,95413.0,95412.0,0.00162808]
[1732783362393,0.052386,95402.0,95400.0,0.4608]
[1732783362696,0.22023175,95401.0,95400.0,0.4608]
[1732783363197,0.0634,95401.0,95400.0,0.4608]
[1732783363595,0.0634,95401.0,95400.0,0.4638]
[1732783364589,0.0634,95401.0,95400.0,0.4688]
[1732783365189,0.07188217,95401.0,95400.0,0.4688]
[1732783365384,0.26011392,95401.0,95400.0,0.4688]
[1732783365889,0.27751754,95401.0,95400.0,0.4688]
[1732783366091,0.26884723,95401.0,95400.0,0.4688]
[1732783368089,0.11220362,95401.0,95400.0,0.4688]
[1732783368991,0.11220362,95401.0,95400.0,0.108]
[1732783369793,0.08080362,95401.0,95400.0,0.108]
[1732783370092,0.12525058,95407.0,95400.0,0.108]
[1732783370291,0.08301297,95410.0,95409.0,0.052382]
[1732783370496,0.08301297,95410.0,95400.0,0.108]
[1732783370497,0.02096814,95413.0,95412.0,0.05238]
[1732783371692,0.02096814,95413.0,95408.0,0.3608]
[1732783371693,0.16912,95420.0,95419.0,0.052376]
[1732783372089,0.052379,95415.0,95413.0,0.052379]
[1732783372490,0.55088814,95420.0,95401.0,0.0313]
[1732783372695,0.08301297,95411.0,95410.0,0.052381]
[1732783372995,0.17762758,95418.0,95401.0,0.0313]
[1732783373194,0.08301297,95411.0,95410.0,0.052381]
[1732783373394,0.052377,95418.0,95407.0,0.3608]
[1732783373592,0.052377,95418.0,95408.0,0.052382]
[1732783373796,0.052377,95418.0,95407.0,0.3608]
[1732783373998,0.052377,95418.0,95408.0,0.052382]
[1732783374298,0.17762758,95418.0,95415.0,0.052378]
[1732783376000,0.17762758,95418.0,95416.0,0.052378]
[1732783376200,0.12525058,95417.0,95416.0,0.052378]
[1732783376895,0.21294023,95418.0,95416.0,0.052378]
[1732783377091,0.15656323,95417.0,95416.0,0.052378]
[1732783378800,0.16056323,95417.0,95416.0,0.052378]
[1732783379197,0.004,95417.0,95416.0,0.052378]
[1732783385296,0.01714019,95421.0,95420.0,0.052376]
[1732783385504,0.12545933,95426.0,95423.0,0.052374]
[1732783385706,0.12545933,95425.0,95423.0,0.052374]
[1732783386200,0.052371,95428.0,95423.0,0.052374]
[1732783386201,0.12703198,95424.0,95423.0,0.052374]
[1732783386398,0.00157265,95424.0,95423.0,0.052374]
[1732783387110,0.00257265,95424.0,95423.0,0.052374]
[1732783387591,0.00557265,95424.0,95423.0,0.052374]
[1732783388096,0.00257265,95424.0,95423.0,0.052374]
[1732783388305,0.00557265,95424.0,95423.0,0.052374]
[1732783388706,0.02325335,95424.0,95423.0,0.052374]
[1732783388907,0.00557265,95424.0,95423.0,0.052374]
[1732783390208,0.00457265,95424.0,95423.0,0.052374]
[1732783391305,0.36337265,95424.0,95420.0,0.18789375]
[1732783391511,0.36337265,95424.0,95400.0,0.1]
[1732783391512,0.53065265,95424.0,95400.0,0.1]
[1732783391708,0.12543737,95408.0,95400.0,0.1]
[1732783392004,0.052386,95401.0,95400.0,0.1]
[1732783393410,0.054386,95401.0,95400.0,0.1]
[1732783393910,0.054386,95401.0,95400.0,0.105]
[1732783394506,0.07216667,95401.0,95400.0,0.1]
[1732783394707,0.07616667,95401.0,95400.0,0.1]
[1732783395412,0.07716667,95401.0,95400.0,0.1]
[1732783395815,0.07516667,95401.0,95400.0,0.1]
[1732783396116,0.07716667,95401.0,95400.0,0.1]
[1732783398612,0.07616667,95401.0,95400.0,0.1]
[1732783399313,0.07716667,95401.0,95400.0,0.1]
[1732783399617,0.02478067,95401.0,95400.0,0.152387]
[1732783399911,0.18156297,95401.0,95400.0,0.152387]
[1732783400116,0.02278067,95401.0,95400.0,0.152387]
[1732783400329,0.02378067,95401.0,95400.0,0.152387]
[1732783400716,0.02278067,95401.0,95400.0,0.152387]
[1732783401321,0.01978067,95401.0,95400.0,0.152387]
[1732783401722,0.01878067,95401.0,95400.0,0.152387]
[1732783401925,0.01778067,95401.0,95400.0,0.152387]
[1732783402119,0.052383,95407.0,95400.0,0.1]
[1732783402321,0.052383,95407.0,95406.0,0.413184]
[1732783403829,0.17780812,95407.0,95406.0,0.413184]
[1732783404336,0.052383,95407.0,95406.0,0.413184]
[1732783404539,0.17780812,95407.0,95406.0,0.413184]
[1732783404835,0.18080812,95407.0,95406.0,0.413184]
[1732783405033,0.19843144,95407.0,95406.0,0.413184]
[1732783406327,0.19943144,95407.0,95406.0,0.413184]
[1732783409636,0.14704844,95407.0,95406.0,0.413184]
[1732783409939,0.02162332,95407.0,95406.0,0.413184]
[1732783411229,0.02062332,95407.0,95406.0,0.413184]
[1732783411931,0.01962332,95407.0,95406.0,0.413184]
[1732783412535,0.01862332,95407.0,95406.0,0.413184]
[1732783414537,0.01762332,95407.0,95406.0,0.413184]
[1732783414739,0.02096593,95409.0,95408.0,0.052382]
[1732783416336,0.20912902,95409.0,95408.0,0.052382]
[1732783416843,0.02096593,95409.0,95408.0,0.052382]
[1732783417744,0.02196593,95409.0,95408.0,0.052382]
[1732783418337,0.21212902,95409.0,95408.0,0.052382]
[1732783419047,0.02396593,95409.0,95408.0,0.052382]
[1732783419344,0.02396593,95409.0,95405.0,0.052384]
[1732783419345,0.052383,95407.0,95405.0,0.052384]
[1732783420947,0.052383,95407.0,95406.0,0.052384]
[1732783421343,0.053383,95407.0,95406.0,0.052384]
[1732783421544,0.07267987,95407.0,95406.0,0.052384]
[1732783421942,0.26114683,95407.0,95406.0,0.052384]
[1732783422147,0.07267987,95407.0,95406.0,0.052384]
[1732783422340,0.07367987,95407.0,95406.0,0.052384]
[1732783425052,0.07267987,95407.0,95406.0,0.052384]
[1732783425352,0.07367987,95407.0,95406.0,0.052384]
[1732783429652,0.07267987,95407.0,95406.0,0.052384]
[1732783429952,0.07367987,95407.0,95406.0,0.052384]
[1732783430851,0.07467987,95407.0,95406.0,0.052384]
[1732783431547,0.07567987,95407.0,95406.0,0.052384]
[1732783434148,0.02329687,95407.0,95406.0,0.052384]
[1732783434650,0.006,95407.0,95406.0,0.052384]
[1732783434851,0.004,95407.0,95406.0,0.052384]
[1732783435048,0.002,95407.0,95406.0,0.052384]
[1732783435250,0.003,95407.0,95406.0,0.052384]
[1732783436045,0.002,95407.0,95406.0,0.052384]
[1732783436246,0.003,95407.0,95406.0,0.052384]
[1732783437848,0.002,95407.0,95406.0,0.052384]
[1732783438049,0.003,95407.0,95406.0,0.052384]
[1732783443858,0.003,95407.0,95404.0,0.413184]
[1732783443859,0.052384,95405.0,95404.0,0.413184]
[1732783444263,0.20952424,95405.0,95404.0,0.413184]
[1732783445069,0.21052424,95405.0,95404.0,0.413184]
[1732783445268,0.053384,95405.0,95404.0,0.413184]
[1732783446158,0.052384,95405.0,95404.0,0.413184]
[1732783446359,0.053384,95405.0,95404.0,0.413184]
[1732783448563,0.052384,95405.0,95404.0,0.413184]
[1732783448764,0.053384,95405.0,95404.0,0.413184]
[1732783449265,0.052384,95405.0,95404.0,0.413184]
[1732783449468,0.053384,95405.0,95404.0,0.413184]
[1732783450974,0.053384,95405.0,95404.0,0.3608]
[1732783451166,0.052386,95401.0,95400.0,0.1]
[1732783452265,0.052386,95401.0,95400.0,0.101]
[1732783452266,0.20955712,95401.0,95400.0,0.101]
[1732783452865,0.20955712,95401.0,95400.0,0.102]
[1732783454077,0.052386,95401.0,95400.0,0.102]
[1732783454570,0.20955712,95401.0,95400.0,0.102]
[1732783454970,0.052386,95401.0,95400.0,0.102]
[1732783456272,0.083886,95401.0,95400.0,0.101]
[1732783462086,0.083886,95401.0,95400.0,0.153387]
[1732783463091,0.083886,95401.0,95400.0,0.101]
[1732783466493,0.083886,95401.0,95400.0,0.153387]
[1732783475287,0.24105747,95401.0,95400.0,0.153387]
[1732783477902,0.15717147,95401.0,95400.0,0.153387]
[1732783478198,0.052384,95405.0,95404.0,0.052385]
[1732783480193,0.055384,95405.0,95404.0,0.052385]
[1732783482807,0.003,95405.0,95404.0,0.413185]
[1732783483510,0.003,95405.0,95404.0,0.6644967]
[1732783483708,0.003,95405.0,95404.0,0.413185]
[1732783485113,0.003,95405.0,95404.0,0.66440155]
[1732783486113,0.003,95405.0,95404.0,0.413185]
[1732783489210,0.12867051,95405.0,95404.0,0.413185]
[1732783489513,0.19154548,95405.0,95404.0,0.413185]
[1732783491913,0.003,95405.0,95404.0,0.413185]
[1732783501424,0.12863618,95405.0,95404.0,0.413185]
[1732783501731,0.003,95405.0,95404.0,0.413185]
[1732783501933,0.12563194,95411.0,95404.0,0.42628832]
[1732783502123,0.15704287,95417.0,95416.0,0.052378]
[1732783502324,0.15704287,95418.0,95417.0,0.052377]
[1732783502629,0.15704287,95418.0,95407.0,0.33399947]
[1732783502630,0.37781893,95422.0,95419.0,0.052376]
[1732783502821,0.052378,95416.0,95415.0,0.052378]
[1732783503529,0.05238,95413.0,95405.0,0.2509865]
[1732783503724,0.15701948,95416.0,95405.0,0.2509865]
[1732783503930,0.15701948,95416.0,95415.0,0.052379]
[1732783504134,0.006,95416.0,95415.0,0.053379]
[1732783504719,0.052378,95417.0,95416.0,0.052378]
[1732783508134,0.374778,95417.0,95404.0,0.3608]
[1732783508333,0.374778,95417.0,95400.0,0.1]
[1732783508334,0.18844225,95409.0,95400.0,0.1]
[1732783508635,0.24082825,95401.0,95400.0,0.152387]
[1732783508833,0.052386,95401.0,95400.0,0.152387]
[1732783509728,0.2408564,95401.0,95400.0,0.152387]
[1732783509934,0.052386,95401.0,95400.0,0.152387]
[1732783510436,0.25869638,95401.0,95400.0,0.152387]
[1732783510836,0.07022131,95401.0,95400.0,0.152387]
[1732783511934,0.07022131,95401.0,95400.0,0.153387]
[1732783516033,0.07022131,95401.0,95400.0,0.101]
[1732783516234,0.38470131,95401.0,95400.0,0.101]
[1732783517439,0.54170843,95401.0,95400.0,0.101]
[1732783518030,0.22722843,95401.0,95400.0,0.101]
[1732783518435,0.07022131,95401.0,95400.0,0.101]
[1732783528437,0.01783531,95401.0,95400.0,0.153387]
[1732783528648,0.15688092,95410.0,95400.0,0.4618]
[1732783528848,0.37789757,95417.0,95415.0,0.052379]
[1732783529447,0.01709757,95417.0,95415.0,0.052379]
[1732783529746,0.052376,95420.0,95418.0,0.052377]
[1732783530644,0.01745347,95421.0,95420.0,0.052376]
[1732783530839,0.01745347,95421.0,95417.0,0.3608]
[1732783530840,0.00157237,95425.0,95423.0,0.052374]
[1732783531739,9.551e-05,95430.0,95429.0,0.052371]
[1732783532050,9.551e-05,95430.0,95429.0,0.413171]
[1732783532245,0.12081772,95440.0,95439.0,0.052365]
[1732783532553,0.12081772,95440.0,95439.0,0.413165]
[1732783533147,0.12081772,95440.0,95439.0,0.36089551]
[1732783533848,0.12581772,95440.0,95439.0,0.36189551]
[1732783534739,0.16149079,95440.0,95439.0,0.36189551]
[1732783535150,0.005,95440.0,95439.0,0.36189551]
[1732783535343,0.014,95440.0,95439.0,0.36289551]
[1732783535546,0.009,95440.0,95439.0,0.36189551]
[1732783535853,0.014,95440.0,95439.0,0.36289551]
[1732783537046,0.17049172,95440.0,95439.0,0.36289551]
[1732783537553,0.014,95440.0,95439.0,0.36289551]
[1732783541853,0.012,95440.0,95439.0,0.36289551]
[1732783545352,0.052354,95460.0,95442.0,0.052364]
[1732783545655,0.052354,95460.0,95456.0,0.052356]
[1732783546356,0.0001151,95459.0,95456.0,0.052356]
[1732783547050,0.052355,95458.0,95456.0,0.052356]
[1732783547448,0.052355,95458.0,95456.0,0.061356]
[1732783548958,0.052355,95458.0,95456.0,0.009]
[1732783549257,0.0639,95457.0,95456.0,0.018]
[1732783550955,0.0639,95457.0,95456.0,0.001]
[1732783551349,0.116256,95457.0,95456.0,0.001]
[1732783553154,0.573096,95457.0,95439.0,0.36089551]
[1732783553354,0.052364,95442.0,95440.0,0.052365]
[1732783554852,0.052364,95442.0,95440.0,0.053365]
[1732783556151,0.055364,95442.0,95440.0,0.053365]
[1732783557152,0.07282481,95442.0,95440.0,0.001]
[1732783557754,0.26129988,95442.0,95440.0,0.001]
[1732783557951,0.18847507,95441.0,95440.0,0.001]
[1732783558252,0.26129988,95442.0,95440.0,0.001]
[1732783558453,0.07282481,95442.0,95440.0,0.001]
[1732783559060,0.003,95441.0,95440.0,0.001]
[1732783559854,0.07282481,95442.0,95440.0,0.001]
[1732783561056,0.001,95441.0,95439.0,0.41422051]
[1732783561456,0.001,95441.0,95439.0,0.41326051]
[1732783561653,0.004,95442.0,95440.0,0.001]
[1732783561853,0.004,95442.0,95441.0,0.052364]
[1732783562257,0.001,95442.0,95441.0,0.052364]
[1732783563266,0.005,95442.0,95441.0,0.052364]
[1732783563451,0.004,95442.0,95441.0,0.052364]
[1732783564251,0.005,95442.0,95441.0,0.053364]
[1732783565162,0.005,95442.0,95441.0,0.085764]
[1732783565359,0.005,95442.0,95441.0,0.33649965]
[1732783566559,0.005,95442.0,95441.0,0.085764]
[1732783567160,0.005,95442.0,95441.0,0.33650344]
[1732783567366,0.005,95442.0,95441.0,0.085764]
[1732783567663,0.005,95442.0,95441.0,0.053364]
[1732783571159,0.005,95442.0,95441.0,0.001]
[1732783571357,1.01163699,95442.0,95439.0,9.551e-05]
[1732783571569,0.366684,95441.0,95439.0,9.551e-05]
[1732783571768,0.18834838,95440.0,95439.0,9.551e-05]
[1732783571961,0.31432,95440.0,95439.0,9.551e-05]
[1732783572157,0.50266234,95440.0,95439.0,9.551e-05]
[1732783573063,0.31432,95440.0,95439.0,9.551e-05]
[1732783573261,0.31432,95440.0,95419.0,0.00157199]
[1732783573466,0.052376,95420.0,95419.0,0.00157199]
[1732783573663,0.17790601,95420.0,95419.0,0.00157199]
[1732783574168,0.052376,95420.0,95419.0,0.00157199]
[1732783574471,0.052376,95420.0,95419.0,0.00165412]
[1732783575165,0.052376,95420.0,95419.0,0.00365412]
[1732783575671,0.052376,95420.0,95419.0,0.00165412]
[1732783575979,0.052376,95420.0,95419.0,0.00565412]
[1732783576459,0.052376,95420.0,95419.0,0.00365412]
[1732783576663,0.054376,95420.0,95419.0,0.00365412]
[1732783578271,0.054376,95420.0,95419.0,0.00165412]
[1732783581166,0.415176,95420.0,95419.0,0.00165412]
[1732783582569,0.557896,95420.0,95406.0,0.3931]
[1732783582870,0.052383,95407.0,95406.0,0.3608]
[1732783583671,0.052383,95407.0,95406.0,0.3638]
[1732783583871,0.15665276,95409.0,95407.0,0.052383]
[1732783584068,0.15665276,95410.0,95407.0,0.052383]
[1732783585184,0.20903376,95411.0,95407.0,0.052383]
[1732783586177,0.052381,95411.0,95409.0,0.052382]
[1732783587685,0.052381,95411.0,95409.0,0.055382]
[1732783587885,0.01714082,95413.0,95411.0,0.052381]
[1732783588081,0.12522611,95418.0,95411.0,0.052381]
[1732783588387,0.052379,95414.0,95412.0,0.05238]
[1732783589684,0.052379,95414.0,95412.0,0.05438]
[1732783590988,0.1429245,95418.0,95416.0,0.052378]
[1732783590989,0.1953015,95418.0,95416.0,0.052378]
[1732783591187,0.07007539,95418.0,95416.0,0.052378]
[1732783592196,0.07007539,95418.0,95416.0,0.053378]
[1732783594198,0.07007539,95418.0,95417.0,0.3608]
[1732783594199,0.01769839,95418.0,95417.0,0.3608]
[1732783594505,0.32032011,95423.0,95421.0,0.052375]
[1732783594797,0.195094,95423.0,95421.0,0.052375]
[1732783595007,0.36932654,95423.0,95421.0,0.052375]
[1732783595189,0.15665276,95422.0,95421.0,0.052375]
[1732783596096,0.06995378,95423.0,95421.0,0.052375]
[1732783597499,0.07195378,95423.0,95421.0,0.052375]
[1732783599200,0.2599371,95423.0,95421.0,0.052375]
[1732783600002,0.2075631,95423.0,95421.0,0.052375]
[1732783600202,0.01957978,95423.0,95421.0,0.052375]
[1732783600601,0.01857978,95423.0,95421.0,0.052375]
[1732783601204,0.01757978,95423.0,95421.0,0.052375]
[1732783601499,0.002,95423.0,95421.0,0.052375]
[1732783602902,0.054374,95423.0,95422.0,0.01391897]
[1732783603503,0.002,95423.0,95417.0,0.413177]
[1732783603695,0.052376,95421.0,95418.0,0.01392026]
[1732783603896,0.052376,95420.0,95419.0,0.01392026]
[1732783604299,0.052376,95420.0,95417.0,0.413177]
[1732783605003,0.052376,95420.0,95418.0,0.052377]
[1732783605507,0.054376,95420.0,95419.0,0.01394871]
[1732783605714,0.054376,95420.0,95411.0,0.05238]
[1732783605715,0.05238,95412.0,95411.0,0.05238]
[1732783606804,0.052383,95408.0,95406.0,0.413183]
[1732783608901,0.052383,95408.0,95406.0,0.418183]
[1732783609607,0.052383,95408.0,95406.0,0.421183]
[1732783610494,0.06952319,95408.0,95406.0,0.421183]
[1732783612908,0.15701403,95407.0,95406.0,0.421183]
[1732783613207,0.15701403,95407.0,95406.0,0.43500778]
[1732783613405,0.15701403,95407.0,95406.0,0.421183]
[1732783613803,0.15701403,95407.0,95406.0,0.3688]
[1732783614002,0.25788312,95408.0,95406.0,0.3688]
[1732783614311,0.06952319,95408.0,95406.0,0.3688]
[1732783615214,0.06952319,95408.0,95406.0,0.3638]
[1732783615406,0.06952319,95408.0,95406.0,0.3688]
[1732783615611,0.06952319,95408.0,95407.0,0.052383]
[1732783617008,0.06952319,95408.0,95406.0,0.3688]
[1732783617009,0.06952319,95408.0,95406.0,0.3658]
[1732783617313,0.06952319,95408.0,95407.0,0.003]
[1732783618405,0.06952319,95408.0,95407.0,0.007]
[1732783619204,0.06952319,95408.0,95407.0,0.004]
[1732783620114,0.06952319,95408.0,95407.0,0.007]
[1732783623915,0.14271329,95408.0,95407.0,0.059383]
[1732783624112,0.14270417,95408.0,95407.0,0.090983]
[1732783624313,0.13896,95416.0,95407.0,0.090983]
[1732783624314,0.12556398,95413.0,95407.0,0.05272283]
[1732783624617,0.01784135,95416.0,95407.0,0.05272283]
[1732783624618,0.14340533,95416.0,95408.0,0.04432283]
[1732783624922,0.052382,95408.0,95407.0,0.007]
[1732783625107,0.052382,95408.0,95407.0,0.02109462]
[1732783625309,0.052382,95408.0,95407.0,0.007]
[1732783625920,0.052382,95408.0,95407.0,0.003]
[1732783626226,0.052382,95408.0,95407.0,0.007]
[1732783626521,0.17795471,95408.0,95407.0,0.004]
[1732783626722,0.17795471,95408.0,95407.0,0.007]
[1732783627422,0.2959734,95414.0,95407.0,0.007]
[1732783627423,0.12557271,95409.0,95408.0,0.052382]
[1732783629115,0.12557271,95410.0,95408.0,0.052382]
[1732783629315,0.12557271,95409.0,95408.0,0.055382]
[1732783629616,0.12557271,95409.0,95408.0,0.058382]
[1732783629925,0.12557271,95410.0,95408.0,0.058382]
[1732783630223,0.12557271,95409.0,95408.0,0.058382]
[1732783630819,0.05238,95412.0,95410.0,0.052381]
[1732783631421,0.01730512,95414.0,95410.0,0.052381]
[1732783631723,0.052381,95411.0,95410.0,0.052381]
[1732783633216,0.052381,95411.0,95410.0,0.054381]
[1732783633524,0.052381,95411.0,95410.0,0.056381]
[1732783633724,0.052381,95411.0,95410.0,0.004]
[1732783637626,0.05248888,95411.0,95410.0,0.004]
[1732783637928,0.27224812,95411.0,95410.0,0.004]
[1732783639122,0.41120812,95411.0,95410.0,0.004]
[1732783639330,0.19144888,95411.0,95410.0,0.004]
[1732783641927,0.19144888,95411.0,95400.0,0.1]
[1732783642233,0.052386,95401.0,95400.0,0.1]
[1732783642424,0.193586,95401.0,95400.0,0.1]
[1732783643130,0.3504995,95401.0,95400.0,0.105]
[1732783643332,0.193586,95401.0,95400.0,0.105]
[1732783644027,0.193586,95401.0,95400.0,0.113]
[1732783645735,0.193586,95401.0,95400.0,0.105]
[1732783645933,0.193586,95401.0,95400.0,0.112]
[1732783646137,0.21087897,95401.0,95400.0,0.112]
[1732783646935,0.21087897,95401.0,95374.0,0.25076484]
[1732783646936,0.15849297,95401.0,95374.0,0.25076484]
[1732783647234,0.15849297,95401.0,95371.0,0.3608]
[1732783647235,0.24070161,95386.0,95371.0,0.3608]
[1732783647441,0.18830661,95385.0,95374.0,0.052401]
[1732783647635,0.052395,95386.0,95374.0,0.052401]
[1732783647935,0.052395,95386.0,95376.0,0.0524]
[1732783648734,0.052395,95386.0,95384.0,0.0395]
[1732783649128,0.18814546,95385.0,95384.0,0.0395]
[1732783649336,0.24054046,95386.0,95384.0,0.0395]
[1732783649530,0.24049735,95386.0,95384.0,0.0395]
[1732783650036,0.052395,95385.0,95384.0,0.009]
[1732783650734,0.0184622,95386.0,95381.0,0.3608]
[1732783650735,0.052397,95382.0,95381.0,0.3608]
[1732783651933,0.003,95385.0,95371.0,0.3608]
[1732783652237,0.15662004,95378.0,95371.0,0.3608]
[1732783652431,0.15662004,95379.0,95371.0,0.3608]
[1732783652733,0.20901904,95379.0,95371.0,0.3608]
[1732783653731,0.18810235,95383.0,95370.0,0.0627]
[1732783653928,0.052403,95371.0,95370.0,0.0627]
[1732783655435,0.052403,95371.0,95370.0,0.0657]
[1732783656633,0.052403,95371.0,95370.0,0.0707]
[1732783657939,0.06946472,95371.0,95370.0,0.008]
[1732783658140,0.01706172,95371.0,95363.0,0.031]
[1732783658338,0.052404,95369.0,95363.0,0.031]
[1732783658533,0.052404,95369.0,95368.0,0.36183]
[1732783658836,0.052404,95369.0,95368.0,0.00103]
[1732783659430,0.052404,95369.0,95368.0,0.00203]
[1732783660936,0.07009957,95369.0,95368.0,0.36283]
[1732783661333,0.07009957,95369.0,95368.0,0.36383]
[1732783662445,0.12523158,95376.0,95374.0,0.052401]
[1732783662630,0.12523158,95381.0,95375.0,0.0322]
[1732783662833,0.12523158,95386.0,95383.0,0.052396]
[1732783663134,0.052394,95388.0,95386.0,0.052394]
[1732783663943,0.052395,95385.0,95384.0,0.0306]
[1732783665750,0.14728,95391.0,95377.0,0.414159]
[1732783665751,0.12523158,95386.0,95377.0,0.36176]
[1732783665937,0.052396,95384.0,95382.0,0.052396]
[1732783666638,0.003,95385.0,95378.0,0.0307]
[1732783666840,0.004,95385.0,95384.0,0.052396]
[1732783668553,0.052395,95386.0,95384.0,0.052396]
[1732783669346,0.06992837,95386.0,95384.0,0.052396]